Workbook

Sheet Covid Stats
A1: Province or territory | B1: Population1 | C1: Total Covid infections2 | D1: Total infections/ 100,000 | E1: New infections2 | F1: New infections /100,000
A2: Yukon | B2: 42271 | C2: 25 | D2: =C2/B2*100000 -> 59.14220151 | E2: 1 | F2: =E2/B2*100000 -> 2.36568806
A3: Saskatchewan | B3: 1180677 | C3: 5553 | D3: =C3/B3*100000 -> 470.3233823 | E3: 131 | F3: =E3/B3*100000 -> 11.09532921
A4: Quebec | B4: 8611402 | C4: 127233 | D4: =C4/B4*100000 -> 1477.494605 | E4: 1179 | F4: =E4/B4*100000 -> 13.69115041
A5: Prince Edward Island | B5: 160754 | C5: 68 | D5: =C5/B5*100000 -> 42.30065815 | E5: 1 | F5: =E5/B5*100000 -> 0.6220685022
A6: Ontario | B6: 14811258 | C6: 98162 | D6: =C6/B6*100000 -> 662.752617 | E6: 1417 | F6: =E6/B6*100000 -> 9.567046904
A7: Nunavut | B7: 39892 | C7: 70 | D7: =C7/B7*100000 -> 175.4737792 | E7: 0 | F7: =E7/B7*100000 -> 0
A8: Nova Scotia | B8: 983417 | C8: 1154 | D8: =C8/B8*100000 -> 117.3459479 | E8: 4 | F8: =E8/B8*100000 -> 0.4067450532
A9: Northwest Territories | B9: 45245 | C9: 15 | D9: =C9/B9*100000 -> 33.15283457 | E9: 0 | F9: =E9/B9*100000 -> 0
A10: Newfoundland & Labrador | B10: 521870 | C10: 307 | D10: =C10/B10*100000 -> 58.82691092 | E10: 2 | F10: =E10/B10*100000 -> 0.3832372047
A11: New Brunswick | B11: 783462 | C11: 388 | D11: =C11/B11*100000 -> 49.52378035 | E11: 9 | F11: =E11/B11*100000 -> 1.148747482
A12: Manitoba | B12: 1382406 | C12: 12007 | E12: 399 | F12: =E12/B12*100000 -> 28.86272195
A13: British Columbia | B13: 5181164 | C13: 24422 | D13: =C13/B13*100000 -> 471.3612617 | E13: 761 | F13: =E13/B13*100000 -> 14.68781919
A14: Alberta | B14: 4439066 | C14: 40962 | D14: =C14/B14*100000 -> 922.76168 | E14: 730 | F14: =E14/B14*100000 -> 16.4449008
